Workbook

Sheet Utgifter
B3: Arrangementsbudsjett for [Navn på arrangement]
H4: Utgifter
H6: Estimert | I6: Faktisk
C7: Totale utgifter | H7: =SUM(D14,D22,D28,D35,H14,H22,H27) -> kr 1,145.00 | I7: =SUM(E14,E22,E28,E35,I14,I22,I27) -> kr 395.00
C9: Sted | D9: Estimert | E9: Faktisk | G9: Forfriskninger | H9: Estimert | I9: Faktisk
C10: Utgifter for lokaler | D10: kr 500.00 | E10: kr 250.00 | G10: Mat
C11: Stedspersonale | D11: kr 400.00 | E11: kr 50.00 | G11: Drikke
C12: Utstyr | G12: Duker
C13: Bord og stoler | G13: Ansatte og tips
C14: Totalt | D14: =SUBTOTAL(109,Tabell1[Estimert]) -> kr 900.00 | E14: =SUBTOTAL(109,Tabell1[Faktisk]) -> kr 300.00 | G14: Totalt | H14: =SUBTOTAL(109,Tabell5[Estimert]) -> kr 0.00 | I14: =SUBTOTAL(109,Tabell5[Faktisk]) -> kr 0.00
C16: Dekorasjoner | D16: Estimert | E16: Faktisk | G16: Program | H16: Estimert | I16: Faktisk
C17: Blomster | D17: kr 200.00 | E17: kr 50.00 | G17: Underholdning
C18: Lys | G18: Talere
C19: Belysning | G19: Reise
C20: Ballonger | G20: Hotell
C21: Papirrekvisita | G21: Annet
C22: Totalt | D22: =SUBTOTAL(109,Tabell2[Estimert]) -> kr 200.00 | E22: =SUBTOTAL(109,Tabell2[Faktisk]) -> kr 50.00 | G22: Totalt | H22: =SUBTOTAL(109,Tabell6[Estimert]) -> kr 0.00 | I22: =SUBTOTAL(109,Tabell6[Faktisk]) -> kr 0.00
C24: Publisitet | D24: Estimert | E24: Faktisk | G24: Premier | H24: Estimert | I24: Faktisk
C25: Grafikkarbeid | D25: kr 45.00 | E25: kr 45.00 | G25: Bånd/plaketter/pokaler
C26: Kopiering/utskrift | G26: Gaver
C27: Porto | G27: Totalt | H27: =SUBTOTAL(109,Tabell7[Estimert]) -> kr 0.00 | I27: =SUBTOTAL(109,Tabell7[Faktisk]) -> kr 0.00
C28: Totalt | D28: =SUBTOTAL(109,Tabell3[Estimert]) -> kr 45.00 | E28: =SUBTOTAL(109,Tabell3[Faktisk]) -> kr 45.00
C30: Diverse | D30: Estimert | E30: Faktisk
C31: Telefon
C32: Transport
C33: Skrivepapir
C34: Fakstjenester
C35: Totalt | D35: =SUBTOTAL(109,Tabell4[Estimert]) -> kr 0.00 | E35: =SUBTOTAL(109,Tabell4[Faktisk]) -> kr 0.00

Sheet Inntekter
B3: Arrangementsbudsjett for [Navn på arrangement]
F4: Inntekter
F6: Estimert | G6: Faktisk
B7: Totale inntekter | F7: =SUM(F14,F21,F28,F36) -> kr 1,936.00 | G7: =SUM(G14,G21,G28,G36) -> kr 1,831.00
B9: Adgang
B10: Estimert | C10: Faktisk | F10: Estimert | G10: Faktisk
B11: 300 | C11: 278 | D11: Voksne @ | E11: kr 5.00 | F11: =B11*E11 -> kr 1,500.00 | G11: =C11*E11 -> kr 1,390.00
B12: 197 | C12: 195 | D12: Barn @ | E12: kr 2.00 | F12: =B12*E12 -> kr 394.00 | G12: =C12*E12 -> kr 390.00
B13: 42 | C13: 51 | D13: Annet @ | E13: kr 1.00 | F13: =B13*E13 -> kr 42.00 | G13: =C13*E13 -> kr 51.00
F14: =SUM(F11:F13) -> kr 1,936.00 | G14: =SUM(G11:G13) -> kr 1,831.00
B16: Annonser i programmet
B17: Estimert | C17: Faktisk | F17: Estimert | G17: Faktisk
D18: For- og baksider @ | F18: =B18*E18 -> kr 0.00 | G18: =C18*E18 -> kr 0.00
D19: Halvsider @ | F19: =B19*E19 -> kr 0.00 | G19: =C19*E19 -> kr 0.00
D20: Kvartsider @ | F20: =B20*E20 -> kr 0.00 | G20: =C20*E20 -> kr 0.00
F21: =SUM(F18:F20) -> kr 0.00 | G21: =SUM(G18:G20) -> kr 0.00
B23: Utstillere/leverandører
B24: Estimert | C24: Faktisk | F24: Estimert | G24: Faktisk
D25: Store stand @ | F25: =B25*E25 -> kr 0.00 | G25: =C25*E25 -> kr 0.00
D26: Middels stand @ | F26: =B26*E26 -> kr 0.00 | G26: =C26*E26 -> kr 0.00
D27: Små stand @ | F27: =B27*E27 -> kr 0.00 | G27: =C27*E27 -> kr 0.00
F28: =SUM(F25:F27) -> kr 0.00 | G28: =SUM(G25:G27) -> kr 0.00
B30: Salg av element
B31: Estimert | C31: Faktisk | F31: Estimert | G31: Faktisk
D32: Elementer @ | F32: =B32*E32 -> kr 0.00 | G32: =C32*E32 -> kr 0.00
D33: Elementer @ | F33: =B33*E33 -> kr 0.00 | G33: =C33*E33 -> kr 0.00
D34: Elementer @ | F34: =B34*E34 -> kr 0.00 | G34: =C34*E34 -> kr 0.00
D35: Elementer @ | F35: =B35*E35 -> kr 0.00 | G35: =C35*E35 -> kr 0.00
F36: =SUM(F32:F35) -> kr 0.00 | G36: =SUM(G32:G35) -> kr 0.00

Sheet Sammendrag
B3: Arrangementsbudsjett for [Navn på arrangement]
F4: Fortjeneste-/tapssammendrag
F6: Estimert | G6: Faktisk
B7: Totale inntekter | F7: =Inntekter!F7 -> kr 1,936.00 | G7: =Inntekter!G7 -> kr 1,831.00
B8: Totale utgifter | F8: =Utgifter!H7 -> kr 1,145.00 | G8: =Utgifter!I7 -> kr 395.00
B9: Total fortjeneste (eller tap) | F9: =F7-F8 -> kr 791.00 | G9: =G7-G8 -> kr 1,436.00
